fUSD/lending_fUSD_20240927
["ID","MTS","AMOUNT","RATE_DAILY","PERIOD"]
[339289773,1727440248807,-500.0,0.00011888,2]
[339289774,1727440248816,-500.0,0.00011888,2]
[339289775,1727440248826,-500.0,0.00011888,2]
[339289776,1727440248835,-500.0,0.00011888,2]
[339289777,1727440248845,-559.17164082,0.00011888,2]
[339289778,1727440248854,-500.0,0.00011888,2]
[339289779,1727440248864,-500.0,0.00011888,2]
[339289780,1727440248875,-500.0,0.00011888,2]
[339289781,1727440248885,-500.0,0.00011888,2]
[339289782,1727440248894,-1123.22,0.00011888,2]
[339289783,1727440248903,-175.98229074,0.00011888,2]
[339289784,1727440249472,-277.1721584,0.00011888,2]
[339289785,1727440249484,-351.33185586,0.00011888,2]
[339289786,1727440249504,-318.733695,0.00011888,2]
[339289787,1727440249514,-500.0,0.00011888,2]
[339289788,1727440249524,-151.76141604,0.00011888,2]
[339289789,1727440249535,-971.45858396,0.00011888,2]
[339289790,1727440249544,-1123.22,0.00011888,2]
[339289791,1727440249555,-1123.22,0.00011888,2]
[339289792,1727440249564,-500.0,0.00011888,2]
[339289793,1727440249574,-500.0,0.00011888,2]
[339289794,1727440249584,-500.0,0.00011888,2]
[339289795,1727440249594,-500.0,0.00011888,2]
[339289796,1727440249604,-500.0,0.00011888,2]
[339289797,1727440249614,-160.64195851,0.00011888,2]
[339289798,1727440249625,-910.79,0.00011888,2]
[339289799,1727440249635,-500.0,0.00011888,2]
[339289800,1727440249644,-910.79,0.00011888,2]
[339289801,1727440249654,-500.0,0.00011888,2]
[339289802,1727440249664,-910.79,0.00011888,2]
[339289803,1727440249674,-500.0,0.00011888,2]
[339289804,1727440249684,-910.79,0.00011888,2]
[339289805,1727440249694,-910.79,0.00011888,2]
[339289806,1727440249704,-581.66,0.00011888,2]
[339289807,1727440249713,-500.0,0.00011888,2]
[339289808,1727440249724,-581.66,0.00011888,2]
[339289809,1727440249734,-500.0,0.00011888,2]
[339289810,1727440249744,-581.66,0.00011888,2]
[339289811,1727440249754,-1083.0,0.00011888,2]
[339289812,1727440249765,-500.0,0.00011888,2]
[339289813,1727440249775,-500.0,0.00011888,2]
[339289814,1727440249784,-115.93483747,0.00011888,2]
[339289815,1727440250810,-258.14999975,0.00011887,2]
[339289816,1727440250822,-241.85000025,0.00011887,2]
[339289817,1727440250832,-500.0,0.00011887,2]
[339289818,1727440250842,-967.06516253,0.00011888,2]
[339289819,1727440250852,-500.0,0.00011888,2]
[339289820,1727440250861,-500.0,0.00011888,2]
[339289821,1727440250871,-500.0,0.00011888,2]
[339289822,1727440250884,-500.0,0.00011888,2]
[339289823,1727440250893,-573.80127926,0.00011888,2]
[339289824,1727440250903,-325.3516288,0.00011888,2]
[339289825,1727440250948,-1486.8683712,0.00011888,2]
[339289826,1727440250958,-1812.22,0.00011888,2]
[339289827,1727440250967,-1812.22,0.00011888,2]
[339289828,1727440250978,-500.0,0.00011888,2]
[339289829,1727440250987,-1812.22,0.00011888,2]
[339289830,1727440250996,-500.0,0.00011888,2]
[339289831,1727440251006,-1812.22,0.00011888,2]
[339289832,1727440251016,-500.0,0.00011888,2]
[339289833,1727440251025,-500.0,0.00011888,2]
[339289834,1727440251036,-500.0,0.00011888,2]
[339289835,1727440251046,-500.0,0.00011888,2]
[339289836,1727440251056,-500.0,0.00011888,2]
[339289837,1727440251065,-500.0,0.00011888,2]
[339289838,1727440251075,-500.0,0.00011888,2]
[339289839,1727440251086,-500.0,0.00011888,2]
[339289840,1727440251095,-500.0,0.00011888,2]
[339289841,1727440251105,-500.0,0.00011888,2]
[339289842,1727440251115,-469.12357847,0.00011888,2]
[339289843,1727440251126,-500.0,0.00011888,2]
[339289844,1727440251137,-500.0,0.00011888,2]
[339289845,1727440251148,-500.0,0.00011888,2]
[339289846,1727440251158,-500.0,0.00011888,2]
[339289847,1727440251168,-500.0,0.00011888,2]
[339289848,1727440251179,-596.09,0.00011888,2]
[339289849,1727440251188,-919.72,0.00011888,2]
[339289850,1727440251198,-919.72,0.00011888,2]
[339289851,1727440251208,-500.0,0.00011888,2]
[339289852,1727440251223,-500.0,0.00011888,2]
[339289853,1727440251233,-500.0,0.00011888,2]
[339289854,1727440251242,-537.15,0.00011888,2]
[339289855,1727440251252,-404.86481406,0.00011888,2]
[339289856,1727440251263,-500.0,0.00011888,2]
[339289857,1727440251273,-500.0,0.00011888,2]
[339289858,1727440251283,-537.15,0.00011888,2]
[339289859,1727440251293,-500.0,0.00011888,2]
[339289860,1727440251303,-500.0,0.00011888,2]
[339289861,1727440251312,-537.15,0.00011888,2]
[339289862,1727440251322,-501.32777818,0.00011888,2]
[339289863,1727440251331,-500.0,0.00011888,2]
[339289864,1727440251341,-537.15,0.00011888,2]
[339289865,1727440251351,-500.0,0.00011888,2]
[339289866,1727440251361,-1285.5,0.00011888,2]
[339289867,1727440251371,-537.15,0.00011888,2]
[339289868,1727440251382,-500.0,0.00011888,2]
[339289869,1727440251393,-504.167546,0.00011888,2]
[339289870,1727440251403,-1285.5,0.00011888,2]
[339289871,1727440251412,-500.0,0.00011888,2]
[339289872,1727440251421,-500.0,0.00011888,2]
[339289873,1727440251431,-1285.5,0.00011888,2]
[339289874,1727440251440,-1285.5,0.00011888,2]
[339289875,1727440251450,-1285.5,0.00011888,2]
[339289876,1727440251460,-500.0,0.00011888,2]
[339289877,1727440251469,-500.0,0.00011888,2]
[339289878,1727440251478,-500.0,0.00011888,2]
[339289879,1727440251488,-500.0,0.00011888,2]
[339289880,1727440251497,-500.0,0.00011888,2]
[339289881,1727440251507,-500.0,0.00011888,2]
[339289882,1727440251517,-500.0,0.00011888,2]
[339289883,1727440251527,-500.0,0.00011888,2]
[339289884,1727440251536,-500.0,0.00011888,2]
[339289885,1727440251547,-500.0,0.00011888,2]
[339289886,1727440251559,-500.0,0.00011888,2]
[339289887,1727440251568,-500.0,0.00011888,2]
[339289888,1727440251578,-500.0,0.00011888,2]
[339289889,1727440251587,-655.89,0.00011888,2]
[339289890,1727440251600,-655.89,0.00011888,2]
[339289891,1727440251610,-655.89,0.00011888,2]
[339289892,1727440251620,-500.0,0.00011888,2]
[339289893,1727440251633,-655.89,0.00011888,2]
[339289894,1727440251643,-500.0,0.00011888,2]
[339289895,1727440251660,-655.89,0.00011888,2]
[339289896,1727440251670,-910.57,0.00011888,2]
[339289897,1727440251680,-500.0,0.00011888,2]
[339289898,1727440251690,-910.57,0.00011888,2]
[339289899,1727440251700,-500.0,0.00011888,2]
[339289900,1727440251710,-500.0,0.00011888,2]
[339289901,1727440251720,-503.69836967,0.00011888,2]
[339289902,1727440251730,-910.57,0.00011888,2]
[339289903,1727440251740,-2227.79,0.00011888,2]
[339289904,1727440251750,-910.57,0.00011888,2]
[339289905,1727440251760,-2147.07,0.00011888,2]
[339289906,1727440251770,-2227.79,0.00011888,2]
[339289907,1727440251779,-910.57,0.00011888,2]
[339289908,1727440251789,-2147.07,0.00011888,2]
[339289909,1727440251799,-500.0,0.00011888,2]
[339289910,1727440251810,-2227.79,0.00011888,2]
[339289911,1727440251820,-500.0,0.00011888,2]
[339289912,1727440251829,-500.0,0.00011888,2]
[339289913,1727440251839,-500.0,0.00011888,2]
[339289914,1727440251850,-504.24760073,0.00011888,2]
[339289915,1727440251861,-500.0,0.00011888,2]
[339289916,1727440251872,-500.0,0.00011888,2]
[339289917,1727440251886,-500.0,0.00011888,2]
[339289918,1727440251897,-500.0,0.00011888,2]
[339289919,1727440251907,-115.06637909,0.00011888,2]
[339289920,1727440252582,177.79,0.00010908,2]
[339289921,1727440252799,-500.0,0.00011887,2]
[339289922,1727440252809,-500.0,0.00011887,2]
[339289923,1727440252818,-384.93362091,0.00011888,2]
[339289924,1727440252828,-500.0,0.00011888,2]
[339289925,1727440252838,-500.0,0.00011888,2]
[339289926,1727440252847,-500.0,0.00011888,2]
[339289927,1727440252857,-500.0,0.00011888,2]
[339289928,1727440252867,-500.0,0.00011888,2]
[339289929,1727440252878,-263.24,0.00011888,2]
[339289930,1727440252888,-500.0,0.00011888,2]
[339289931,1727440252897,-514.0,0.00011889,2]
[339289932,1727440252906,-15298.70846516,0.00011889,2]
[339289933,1727440254660,11511.0,0.000102,5]
[339289934,1727440272234,418.16,8.99e-05,2]
[339289935,1727440285330,178.93,0.00010959,2]
[339289936,1727440492467,-500.0,0.00011164,2]
[339289937,1727440492490,-500.0,0.00011164,2]
[339289938,1727440492512,-500.0,0.00011164,2]
[339289939,1727440560074,250.0,0.00010908,2]
[339290012,1727440755899,-500.0,0.00011164,2]
[339290014,1727440755920,-500.0,0.00011164,2]
[339290016,1727440755941,-500.0,0.00011164,2]
[339290075,1727440788709,1000.0,0.00010983,2]
[339290076,1727440838622,404.84,9.056e-05,2]
[339290077,1727441044448,238.23,0.00010956,2]
[339290078,1727441095433,-500.0,0.00011164,2]
[339290079,1727441095453,-500.0,0.00011164,2]
[339290080,1727441095474,-500.0,0.00011164,2]
[339290082,1727441137942,250.0,0.00010956,2]
[339290088,1727441147993,600.45,0.00010959,2]
[339290182,1727441187503,-500.0,0.00011164,2]
[339290183,1727441187524,-500.0,0.00011164,2]
[339290289,1727441292249,-500.0,0.00011164,2]
[339290290,1727441292271,-500.0,0.00011164,2]
[339290291,1727441299093,-404.84,0.00011319,2]
[339290299,1727441355486,-500.0,0.00011164,2]
[339290300,1727441355509,-500.0,0.00011164,2]
[339290301,1727441355531,-500.0,0.00011164,2]
[339290302,1727441374625,200.0,0.00010986,2]
[339290304,1727441394745,419.65,0.00010959,2]
[339290306,1727441407401,379.56,9.058e-05,2]
[339290314,1727441431880,-500.0,0.00011164,2]
[339290315,1727441431889,-291.79945132,0.00011322,2]
[339290316,1727441431937,-87.76054868,0.00011322,2]
[339290317,1727441431946,-526.0268,0.00011786,2]
[339290318,1727441431955,-288.009,0.00011886,2]
[339290319,1727441431965,-289.08039396,0.00011886,2]
[339290320,1727441431974,-500.0,0.00011886,2]
[339290321,1727441431983,-500.0,0.00011886,2]
[339290322,1727441431993,-500.0,0.00011886,2]
[339290323,1727441432002,-500.0,0.00011886,2]
[339290324,1727441432011,-500.0,0.00011886,2]
[339290325,1727441432020,-500.0,0.00011886,2]
[339290326,1727441432030,-56.17222036,0.00011886,2]
[339290327,1727441432043,-279.69657276,0.00011886,2]
[339290328,1727441432055,-164.13120688,0.00011886,2]
[339290329,1727441432066,-500.0,0.00011886,2]
[339290330,1727441432075,-411.29879312,0.00011886,2]
[339290331,1727441432097,-88.70120688,0.00011886,2]
[339290332,1727441432106,-167.27438741,0.00011886,2]
[339290333,1727441432117,-332.72561259,0.00011886,2]
[339290334,1727441432128,-101.87535464,0.00011886,2]
[339290335,1727441432163,-358.03106852,0.00011886,2]
[339290336,1727441432175,-40.09357684,0.00011886,2]
[339290337,1727441432184,-512.36947501,0.00011886,2]
[339290338,1727441432195,-324.19052499,0.00011886,2]
[339290339,1727441432204,-123.73299437,0.00011886,2]
[339290340,1727441432215,-376.26700563,0.00011886,2]
[339290341,1727441432224,-500.0,0.00011886,2]
[339290343,1727441432233,-500.0,0.00011886,2]
[339290345,1727441432242,-500.0,0.00011886,2]
[339290347,1727441432252,-438.17129867,0.00011886,2]
[339290349,1727441432263,-344.19142609,0.00011886,2]
[339290354,1727441432295,-24.09727524,0.00011886,2]
[339290356,1727441432305,-500.0,0.00011886,2]
[339290358,1727441432314,-217.37004616,0.00011886,2]
[339290360,1727441432325,-282.62995384,0.00011886,2]
[339290362,1727441432334,-613.44,0.00011886,2]
[339290364,1727441432344,-500.0,0.00011886,2]
[339290366,1727441432354,-500.0,0.00011886,2]
[339290368,1727441432363,-500.0,0.00011886,2]
[339290370,1727441432372,-500.0,0.00011886,2]
[339290372,1727441432381,-656.63,0.00011886,2]
[339290374,1727441432390,-500.0,0.00011886,2]
[339290376,1727441432399,-500.0,0.00011886,2]
[339290378,1727441432408,-500.0,0.00011886,2]
[339290380,1727441432419,-500.0,0.00011886,2]
[339290382,1727441432428,-190.64223805,0.00011886,2]
[339290384,1727441432438,-500.0,0.00011886,2]
[339290386,1727441432447,-1017.40247927,0.00011886,2]
[339290388,1727441432459,-2011.91752073,0.00011886,2]
[339290390,1727441432469,-1130.03,0.00011886,2]
[339290392,1727441432479,-500.0,0.00011886,2]
[339290394,1727441432489,-186.57107411,0.00011886,2]
[339290449,1727441438160,-313.42892589,0.00011886,2]
[339290450,1727441438172,-152.69679885,0.00011886,2]
[339290451,1727441438328,-1293.70320115,0.00011886,2]
[339290452,1727441438338,-500.0,0.00011886,2]
[339290453,1727441438347,-1013.58,0.00011886,2]
[339290454,1727441438356,-500.0,0.00011886,2]
[339290455,1727441438366,-730.91,0.00011886,2]
[339290456,1727441438375,-765.23,0.00011886,2]
[339290457,1727441438384,-584.75,0.00011886,2]
[339290458,1727441438393,-500.0,0.00011886,2]
[339290459,1727441438404,-500.0,0.00011886,2]
[339290460,1727441438414,-1010.72,0.00011886,2]
[339290461,1727441438429,-500.0,0.00011886,2]
[339290462,1727441438439,-500.0,0.00011886,2]
[339290463,1727441438450,-573.75,0.00011886,2]
[339290464,1727441438465,-500.0,0.00011886,2]
[339290465,1727441438475,-854.69,0.00011886,2]
[339290466,1727441438485,-500.0,0.00011886,2]
[339290467,1727441438495,-500.0,0.00011886,2]
[339290491,1727441438770,-500.0,0.00011886,2]
[339290493,1727441438780,-800.76,0.00011886,2]
[339290495,1727441438790,-2134.85,0.00011886,2]
[339290497,1727441438799,-659.13,0.00011886,2]
[339290499,1727441438808,-500.0,0.00011886,2]
[339290501,1727441438817,-500.0,0.00011886,2]
[339290503,1727441438826,-1529.58,0.00011886,2]
[339290505,1727441438836,-500.0,0.00011886,2]
[339290507,1727441438845,-500.0,0.00011886,2]
[339290509,1727441438855,-500.0,0.00011886,2]
[339290511,1727441438863,-500.0,0.00011886,2]
[339290512,1727441438872,-500.0,0.00011886,2]
[339290514,1727441438881,-875.9,0.00011886,2]
[339290516,1727441438891,-1283.66,0.00011886,2]
[339290518,1727441438901,-1283.66,0.00011886,2]
[339290520,1727441438911,-1283.66,0.00011886,2]
[339290523,1727441438923,-1165.68,0.00011886,2]
[339290525,1727441438934,-910.56,0.00011886,2]
[339290527,1727441438943,-910.56,0.00011886,2]
[339290528,1727441438953,-910.56,0.00011886,2]
[339290530,1727441438963,-500.0,0.00011886,2]
[339290532,1727441438973,-500.0,0.00011886,2]
[339290535,1727441438985,-500.0,0.00011886,2]
[339290537,1727441438994,-500.0,0.00011886,2]
[339290539,1727441439003,-500.0,0.00011886,2]
[339290540,1727441439012,-1296.68,0.00011886,2]
[339290543,1727441439023,-502.21,0.00011886,2]
[339290545,1727441439034,-502.21,0.00011886,2]
[339290547,1727441439044,-869.98,0.00011886,2]
[339290549,1727441439055,-502.21,0.00011886,2]
[339290551,1727441439066,-500.0,0.00011886,2]
[339290553,1727441439076,-500.0,0.00011886,2]
[339290555,1727441439085,-500.0,0.00011886,2]
[339290557,1727441439095,-500.0,0.00011886,2]
[339290559,1727441439104,-500.0,0.00011886,2]
[339290560,1727441439113,-500.0,0.00011886,2]
[339290562,1727441439123,-500.0,0.00011886,2]
[339290564,1727441439133,-500.0,0.00011886,2]
[339290566,1727441439143,-500.0,0.00011886,2]
[339290568,1727441439152,-500.0,0.00011886,2]
[339290570,1727441439161,-628.39,0.00011886,2]
[339290572,1727441439173,-500.0,0.00011886,2]
[339290574,1727441439182,-628.39,0.00011886,2]
[339290576,1727441439191,-500.0,0.00011886,2]
[339290578,1727441439201,-628.39,0.00011886,2]
[339290580,1727441439211,-500.0,0.00011886,2]
[339290582,1727441439221,-559.89,0.00011886,2]
[339290584,1727441439230,-559.89,0.00011886,2]
[339290586,1727441439240,-559.89,0.00011886,2]
[339290588,1727441439249,-1084.26,0.00011886,2]
[339290589,1727441439258,-651.7,0.00011886,2]
[339290591,1727441439267,-651.7,0.00011886,2]
[339290594,1727441439277,-651.7,0.00011886,2]
[339290595,1727441439287,-793.71,0.00011886,2]
[339290597,1727441439296,-793.71,0.00011886,2]
[339290599,1727441439307,-793.71,0.00011886,2]
[339290602,1727441439316,-544.59,0.00011886,2]
[339290604,1727441439326,-879.95,0.00011886,2]
[339290605,1727441439336,-544.59,0.00011886,2]
[339290607,1727441439346,-544.59,0.00011886,2]
[339290609,1727441439355,-500.0,0.00011886,2]
[339290611,1727441439365,-500.0,0.00011886,2]
[339290613,1727441439374,-500.0,0.00011886,2]
[339290615,1727441439384,-1316.32,0.00011886,2]
[339290617,1727441439394,-623.71,0.00011886,2]
[339290619,1727441439404,-623.71,0.00011886,2]
[339290621,1727441439413,-623.71,0.00011886,2]
[339290623,1727441439425,-500.0,0.00011886,2]
[339290625,1727441439436,-510.47860488,0.00011886,2]
[339290627,1727441439445,-500.0,0.00011886,2]
[339290629,1727441439456,-500.0,0.00011886,2]
[339290631,1727441439467,-500.0,0.00011886,2]
[339290633,1727441439479,-500.0,0.00011886,2]
[339290635,1727441439488,-500.0,0.00011886,2]
[339290638,1727441439500,-500.0,0.00011886,2]
[339290640,1727441439512,-796.93,0.00011886,2]
[339290642,1727441439522,-500.0,0.00011886,2]
[339290643,1727441439532,-500.0,0.00011886,2]
[339290645,1727441439542,-500.0,0.00011886,2]
[339290647,1727441439551,-500.0,0.00011886,2]
[339290649,1727441439560,-500.0,0.00011886,2]
[339290651,1727441439570,-500.0,0.00011886,2]
[339290654,1727441439581,-500.0,0.00011886,2]
[339290656,1727441439590,-500.0,0.00011886,2]
[339290658,1727441439600,-1380.0,0.00011886,2]
[339290660,1727441439611,-500.0,0.00011886,2]
[339290662,1727441439621,-1380.0,0.00011886,2]
[339290664,1727441439632,-1380.0,0.00011886,2]
[339290666,1727441439641,-1115.19,0.00011886,2]
[339290668,1727441439650,-641.79,0.00011886,2]
[339290670,1727441439659,-641.79,0.00011886,2]
[339290672,1727441439669,-641.79,0.00011886,2]
[339290674,1727441439680,-759.19,0.00011886,2]
[339290677,1727441439689,-759.19,0.00011886,2]
[339290679,1727441439699,-759.19,0.00011886,2]
[339290682,1727441439708,-500.0,0.00011886,2]
[339290684,1727441439719,-500.0,0.00011886,2]
[339290686,1727441439728,-500.0,0.00011886,2]
[339290688,1727441439738,-500.0,0.00011886,2]
[339290690,1727441439748,-500.0,0.00011886,2]
[339290692,1727441439758,-500.0,0.00011886,2]
[339290694,1727441439767,-500.0,0.00011886,2]
[339290696,1727441439777,-500.0,0.00011886,2]
[339290698,1727441439786,-500.0,0.00011886,2]
[339290699,1727441439795,-500.0,0.00011886,2]
[339290701,1727441439805,-500.0,0.00011886,2]
[339290703,1727441439814,-500.0,0.00011886,2]
[339290705,1727441439823,-658.84,0.00011886,2]
[339290707,1727441439832,-500.0,0.00011886,2]
[339290709,1727441439842,-500.0,0.00011886,2]
[339290711,1727441439851,-500.0,0.00011886,2]
[339290713,1727441439860,-500.0,0.00011886,2]
[339290715,1727441439870,-500.0,0.00011886,2]
[339290717,1727441439879,-500.0,0.00011886,2]
[339290719,1727441439889,-559.0,0.00011886,2]
[339290721,1727441439898,-458.60115325,0.00011886,2]
[339290725,1727441439907,-500.0,0.00011886,2]
[339290728,1727441439917,-500.0,0.00011886,2]
[339290730,1727441439928,-500.0,0.00011886,2]
[339290732,1727441439938,-500.0,0.00011886,2]
[339290734,1727441439947,-500.0,0.00011886,2]
[339290736,1727441439957,-500.0,0.00011886,2]
[339290738,1727441439966,-500.0,0.00011886,2]
[339290740,1727441439977,-500.0,0.00011886,2]
[339290742,1727441439986,-500.0,0.00011886,2]
[339290744,1727441439996,-500.0,0.00011886,2]
[339290746,1727441440006,-1500.04,0.00011886,2]
[339290748,1727441440016,-548.69,0.00011886,2]
[339290750,1727441440026,-548.69,0.00011886,2]
[339290752,1727441440035,-548.69,0.00011886,2]
[339290754,1727441440045,-1500.04,0.00011886,2]
[339290756,1727441440055,-500.0,0.00011886,2]
[339290758,1727441440065,-757.81,0.00011886,2]
[339290760,1727441440075,-757.81,0.00011886,2]
[339290762,1727441440085,-500.0,0.00011886,2]
[339290764,1727441440095,-500.0,0.00011886,2]
[339290766,1727441440105,-500.0,0.00011886,2]
[339290768,1727441440115,-500.0,0.00011886,2]
[339290770,1727441440124,-371.26532952,0.00011886,2]
[339290772,1727441440134,-859.91,0.00011886,2]
[339290774,1727441440144,-645.58,0.00011886,2]
[339290776,1727441440154,-859.91,0.00011886,2]
[339290778,1727441440164,-859.91,0.00011886,2]
[339290780,1727441440176,-500.0,0.00011886,2]
[339290782,1727441440185,-500.0,0.00011886,2]
[339290784,1727441440195,-500.0,0.00011886,2]
[339290786,1727441440204,-500.0,0.00011886,2]
[339290788,1727441440215,-500.0,0.00011886,2]
[339290790,1727441440224,-500.0,0.00011886,2]
[339290792,1727441440234,-504.81913705,0.00011886,2]
[339290794,1727441440244,-933.12,0.00011886,2]
[339290796,1727441440254,-933.12,0.00011886,2]
[339290798,1727441440264,-500.0,0.00011886,2]
[339290800,1727441440274,-933.12,0.00011886,2]
[339290802,1727441440284,-747.06,0.00011886,2]
[339290804,1727441440295,-747.06,0.00011886,2]
[339290806,1727441440305,-747.06,0.00011886,2]
[339290809,1727441440314,-567.75,0.00011886,2]
[339290810,1727441440324,-567.75,0.00011886,2]
[339290812,1727441440334,-335.07622546,0.00011886,2]
[339290815,1727441440344,-500.0,0.00011886,2]
[339290816,1727441440353,-500.0,0.00011886,2]
[339290818,1727441440363,-500.0,0.00011886,2]
[339290821,1727441440372,-532.88,0.00011886,2]
[339290822,1727441440382,-532.88,0.00011886,2]
[339290824,1727441440392,-532.88,0.00011886,2]
[339290826,1727441440402,-500.0,0.00011886,2]
[339290828,1727441440413,-503.03930891,0.00011886,2]
[339290830,1727441440423,-500.0,0.00011886,2]
[339290832,1727441440433,-500.0,0.00011886,2]
[339290834,1727441440443,-500.0,0.00011886,2]
[339290836,1727441440453,-877.41,0.00011886,2]
[339290838,1727441440463,-877.41,0.00011886,2]
[339290840,1727441440472,-500.0,0.00011886,2]
[339290842,1727441440482,-2297.79206164,0.00011886,2]
[339290845,1727441440510,-236.81793836,0.00011886,2]
[339290847,1727441440521,-2534.61,0.00011886,2]
[339290850,1727441440531,-500.0,0.00011886,2]
[339290852,1727441440542,-522.74,0.00011886,2]
[339290854,1727441440551,-500.0,0.00011886,2]
[339290856,1727441440562,-522.74,0.00011886,2]
[339290858,1727441440571,-500.0,0.00011886,2]
[339290859,1727441440581,-522.74,0.00011886,2]
[339290861,1727441440591,-500.0,0.00011886,2]
[339290863,1727441440601,-1097.57,0.00011886,2]
[339290865,1727441440611,-1097.57,0.00011886,2]
[339290867,1727441440620,-690.93,0.00011886,2]
[339290869,1727441440630,-668.87,0.00011886,2]
[339290871,1727441440639,-500.0,0.00011886,2]
[339290873,1727441440649,-668.87,0.00011886,2]
[339290875,1727441440659,-500.0,0.00011886,2]
[339290877,1727441440670,-668.87,0.00011886,2]
[339290880,1727441440681,-500.0,0.00011886,2]
[339290882,1727441440690,-1422.1,0.00011886,2]
[339290884,1727441440700,-1422.1,0.00011886,2]
[339290886,1727441440710,-1422.1,0.00011886,2]
[339290888,1727441440719,-787.58,0.00011886,2]
[339290890,1727441440729,-788.64,0.00011886,2]
[339290892,1727441440739,-500.0,0.00011886,2]
[339290894,1727441440748,-230.54558274,0.00011886,2]
[339290896,1727441440758,-500.0,0.00011886,2]
[339290898,1727441440768,-500.0,0.00011886,2]
[339290900,1727441440778,-500.0,0.00011886,2]
[339290902,1727441440788,-500.0,0.00011886,2]
[339290903,1727441440797,-500.0,0.00011886,2]
[339290904,1727441440807,-500.0,0.00011886,2]
[339290905,1727441440817,-355.6,0.00011886,2]
[339290906,1727441440827,-500.0,0.00011886,2]
[339290907,1727441440837,-500.0,0.00011886,2]
[339290908,1727441440846,-500.0,0.00011886,2]
[339290909,1727441440855,-713.73,0.00011886,2]
[339290910,1727441440865,-500.0,0.00011886,2]
[339290911,1727441440874,-500.0,0.00011886,2]
[339290912,1727441440883,-500.0,0.00011886,2]
[339290913,1727441440892,-639.98,0.00011886,2]
[339290914,1727441440902,-635.2,0.00011886,2]
[339290916,1727441440911,-635.2,0.00011886,2]
[339290918,1727441440922,-635.2,0.00011886,2]
[339290920,1727441440932,-500.0,0.00011886,2]
[339290922,1727441440941,-500.0,0.00011886,2]
[339290924,1727441440951,-500.0,0.00011886,2]
[339290926,1727441440961,-500.0,0.00011886,2]
[339290928,1727441440970,-500.0,0.00011886,2]
[339290930,1727441440979,-500.0,0.00011886,2]
[339290932,1727441440989,-500.0,0.00011886,2]
[339290934,1727441440998,-500.0,0.00011886,2]
[339290936,1727441441008,-500.0,0.00011886,2]
[339290938,1727441441017,-500.0,0.00011886,2]
[339290940,1727441441027,-179.26,0.00011886,2]
[339290942,1727441441037,-500.0,0.00011886,2]
[339290944,1727441441046,-500.0,0.00011886,2]
[339290947,1727441441056,-500.0,0.00011886,2]
[339290949,1727441441066,-500.0,0.00011886,2]
[339290950,1727441441075,-548.25,0.00011886,2]
[339290952,1727441441084,-500.0,0.00011886,2]
[339290954,1727441441093,-500.0,0.00011886,2]
[339290956,1727441441103,-500.0,0.00011886,2]
[339290958,1727441441112,-500.0,0.00011886,2]
[339290960,1727441441121,-500.0,0.00011886,2]